bitfinex-derivatives/quotes_BTCF0:USTF0_20210404
["timestamp","ask_amount","ask_price","bid_price","bid_amount"]
[1617576459166,3.21816154,58097.0,58091.0,0.06070221]
[1617576459366,1.0,58092.0,58091.0,0.27]
[1617576459666,0.2995564,58096.0,58091.0,0.27]
[1617576459866,1.0,58092.0,58091.0,0.36243602]
[1617576460068,1.0,58092.0,58091.0,3.33943602]
[1617576460268,1.0,58092.0,58091.0,3.06943602]
[1617576460666,1.0,58092.0,58091.0,3.33943602]
[1617576460867,1.10725655,58092.0,58091.0,3.33943602]
[1617576461767,1.40713535,58092.0,58091.0,3.33943602]
[1617576462167,1.10725655,58092.0,58091.0,2.977]
[1617576462969,1.10725655,58092.0,58091.0,3.33943257]
[1617576463872,1.40712546,58092.0,58091.0,2.977]
[1617576464871,1.10725655,58092.0,58091.0,3.33943416]
[1617576465773,1.11734869,58092.0,58091.0,3.33943416]
[1617576466274,1.40710842,58092.0,58091.0,2.977]
[1617576467676,1.10725655,58092.0,58091.0,2.977]
[1617576468876,1.10725655,58092.0,58091.0,0.63244246]
[1617576469077,0.10725655,58092.0,58091.0,0.63244246]
[1617576469281,3.00545655,58092.0,58091.0,0.63244246]
[1617576469676,4.13056655,58092.0,58091.0,0.63244246]
[1617576469877,3.13056655,58092.0,58091.0,0.63244246]
[1617576470879,3.79244655,58092.0,58091.0,1.07689243]
[1617576472880,0.89424655,58092.0,58091.0,1.07689243]
[1617576473082,0.89424655,58092.0,58091.0,3.97919243]
[1617576473279,0.76913655,58092.0,58091.0,3.97919243]
[1617576473880,1.76913655,58092.0,58091.0,4.07024714]
[1617576474280,0.76913655,58092.0,58091.0,4.07024714]
[1617576475683,0.87217655,58092.0,58091.0,4.07024714]
[1617576476286,0.87217655,58092.0,58091.0,1.16794714]
[1617576476685,3.69007655,58092.0,58091.0,1.07689243]
[1617576479988,4.69007655,58092.0,58091.0,1.07689243]
[1617576480589,5.13109277,58092.0,58091.0,1.07689243]
[1617576481588,5.13109277,58092.0,58091.0,0.63244246]
[1617576484495,4.13109277,58092.0,58091.0,0.63244246]
[1617576484895,3.69007655,58092.0,58091.0,1.07689945]
[1617576486100,3.69007655,58092.0,58091.0,4.36389945]
[1617576486498,3.69007655,58092.0,58091.0,4.45495677]
[1617576488107,0.87217655,58092.0,58091.0,4.57912677]
[1617576488307,0.76913655,58092.0,58091.0,4.57912677]
[1617576488920,0.76913655,58092.0,58091.0,4.68638332]
[1617576489310,0.40812021,58092.0,58091.0,4.88638332]
[1617576489920,0.40812021,58092.0,58091.0,2.10435794]
[1617576490108,3.50762021,58092.0,58091.0,1.90435794]
[1617576490306,0.40812021,58092.0,58091.0,1.81330062]
[1617576490904,3.20705655,58092.0,58091.0,1.81330062]
[1617576491408,3.2171903,58092.0,58091.0,1.81330062]
[1617576491805,3.50811393,58092.0,58091.0,1.81330062]
[1617576492205,3.21718964,58092.0,58091.0,1.81330062]
[1617576492806,0.11738964,58092.0,58091.0,3.31330062]
[1617576493007,0.11738964,58092.0,58091.0,6.38630062]
[1617576493008,0.10725655,58092.0,58091.0,6.38630062]
[1617576493507,0.10725655,58092.0,58091.0,6.61897067]
[1617576496809,0.10725655,58092.0,58091.0,5.11897067]
[1617576497510,0.10725655,58092.0,58091.0,4.97734542]
[1617576500412,0.10115655,58092.0,58091.0,4.97734542]
[1617576500612,0.10115655,58092.0,58091.0,1.90434542]
[1617576500811,3.67345655,58092.0,58091.0,1.78017542]
[1617576501212,3.67345655,58092.0,58091.0,1.68913062]
[1617576501911,3.67345655,58092.0,58091.0,1.74083062]
[1617576502112,3.67345655,58092.0,58091.0,1.68913062]
[1617576503635,3.73448219,58092.0,58091.0,1.68913062]
[1617576504418,3.68358219,58092.0,58091.0,1.68913062]
[1617576505017,3.67345655,58092.0,58091.0,1.68913062]
[1617576505417,3.68358302,58092.0,58091.0,1.68913062]
[1617576505617,3.68358302,58092.0,58091.0,1.83635062]
[1617576505819,3.67345655,58092.0,58091.0,1.83635062]
[1617576508023,3.67345655,58092.0,58091.0,1.68913062]
[1617576509023,0.10115655,58092.0,58091.0,1.68913062]
[1617576509426,0.01013056,58095.0,58094.0,3.2589]
[1617576509824,0.01013258,58096.0,58094.0,4.99289124]
[1617576510224,0.01013417,58097.0,58095.0,1.4640053]
[1617576510624,0.01013417,58097.0,58096.0,0.27]
[1617576510824,0.01013417,58097.0,58096.0,5.19092945]
[1617576511023,0.01013417,58097.0,58096.0,7.74192945]
[1617576511224,0.01013576,58099.0,58096.0,7.00262238]
[1617576511425,0.01013576,58099.0,58096.0,4.39372238]
[1617576511626,0.30116239,58100.0,58098.0,5.46921345]
[1617576511827,0.01014215,58103.0,58098.0,5.46921345]
[1617576511828,0.01014215,58103.0,58100.0,0.2]
[1617576512029,0.01014675,58106.0,58102.0,1.31180176]
[1617576512228,0.01014675,58106.0,58103.0,1.7]
[1617576512428,0.01014675,58106.0,58103.0,1.96]
[1617576512629,0.01014939,58108.0,58106.0,0.2]
[1617576512830,0.01014939,58108.0,58107.0,1.7]
[1617576513029,0.01014939,58108.0,58107.0,3.38900507]
[1617576513229,0.01014939,58108.0,58107.0,3.11900507]
[1617576513430,0.0101532,58110.0,58107.0,4.27070997]
[1617576513629,0.0101532,58110.0,58107.0,4.54070997]
[1617576513830,0.0101532,58110.0,58108.0,1.0]
[1617576514030,0.01015504,58111.0,58109.0,1.7]
[1617576514230,0.01015504,58111.0,58109.0,2.97]
[1617576514431,0.01015613,58112.0,58109.0,4.34238164]
[1617576514832,0.01015613,58112.0,58110.0,1.46339934]
[1617576515031,0.01015613,58112.0,58111.0,0.2]
[1617576515232,0.01015613,58112.0,58111.0,1.7816929]
[1617576515432,0.06235613,58112.0,58111.0,1.7816929]
[1617576515632,0.35389421,58112.0,58111.0,1.42889686]
[1617576515832,0.35389421,58112.0,58111.0,4.20749686]
[1617576516032,0.30169421,58112.0,58111.0,4.11647612]
[1617576516233,0.01012636,58115.0,58111.0,3.67251852]
[1617576517033,0.01012636,58115.0,58114.0,0.46954797]
[1617576517034,0.11738291,58115.0,58114.0,0.46954797]
[1617576517234,0.16918291,58115.0,58114.0,0.46954797]
[1617576517435,0.16918291,58115.0,58114.0,0.73954797]
[1617576517733,0.11738291,58115.0,58114.0,0.73954797]
[1617576517933,0.10725655,58115.0,58114.0,0.73954797]
[1617576518135,0.40808997,58115.0,58114.0,0.43793665]
[1617576518534,0.40808997,58115.0,58114.0,0.8002315]
[1617576519034,0.10725655,58115.0,58114.0,0.8002315]
[1617576521035,0.10725655,58115.0,58114.0,3.8957315]
[1617576521837,0.11738451,58115.0,58114.0,3.8957315]
[1617576522340,0.10725655,58115.0,58114.0,3.8957315]
[1617576523337,0.11737949,58115.0,58114.0,3.8957315]
[1617576527238,0.11737949,58115.0,58114.0,0.8002315]
[1617576527440,3.70297949,58115.0,58114.0,0.8002315]
[1617576527640,3.70297949,58115.0,58114.0,0.43793665]
[1617576527641,3.69285655,58115.0,58114.0,0.43793665]
[1617576527840,3.99314997,58115.0,58114.0,0.27]
[1617576528039,1.40754997,58115.0,58114.0,0.27]
[1617576528239,1.40754997,58115.0,58111.0,0.27]
[1617576528440,3.5866,58112.0,58111.0,0.27]
[1617576528639,3.5866,58112.0,58110.0,0.01]
[1617576528839,5.24636252,58112.0,58111.0,0.26]
[1617576529041,4.24636252,58112.0,58111.0,0.26]
[1617576529239,4.24636252,58112.0,58104.0,0.02]
[1617576529441,4.48910658,58112.0,58104.0,0.02]
[1617576529642,4.48910658,58112.0,58110.0,0.27]
[1617576529840,4.48910658,58112.0,58103.0,0.25]
[1617576529841,0.24274645,58111.0,58103.0,0.25]
[1617576530043,0.24274645,58111.0,58100.0,0.36202955]
[1617576530242,0.90132037,58111.0,58104.0,0.25]
[1617576530643,0.29931296,58105.0,58099.0,0.36203456]
[1617576530842,0.29931296,58105.0,58102.0,0.27]
[1617576531042,0.01006883,58104.0,58101.0,0.01]
[1617576531243,0.10725655,58102.0,58101.0,0.01]
[1617576531443,0.10725655,58102.0,58100.0,0.27]
[1617576531642,0.10725655,58102.0,58101.0,0.27]
[1617576531942,1.10725655,58102.0,58100.0,0.27]
[1617576532344,0.10725655,58102.0,58101.0,0.27]
[1617576532545,0.10725655,58102.0,58100.0,0.6320379]
[1617576532943,0.10725655,58102.0,58100.0,0.3620379]
[1617576533346,0.10725655,58102.0,58101.0,0.63203552]
[1617576533846,0.10725655,58102.0,58101.0,0.36203552]
[1617576534051,0.10725655,58102.0,58101.0,0.63203552]
[1617576534647,0.10725655,58102.0,58101.0,0.33068769]
[1617576535249,1.10725655,58102.0,58101.0,0.33068769]
[1617576535649,1.15855655,58102.0,58101.0,0.33068769]
[1617576535850,1.15855655,58102.0,58101.0,0.27]
[1617576536250,1.28421655,58102.0,58098.0,0.01]
[1617576536451,2.6978,58099.0,58098.0,0.01]
[1617576536650,2.6978,58099.0,58092.0,0.36206515]
[1617576536850,2.6978,58099.0,58098.0,0.27]
[1617576536851,2.99647839,58099.0,58098.0,0.27]
[1617576537250,2.99647839,58099.0,58092.0,0.36206515]
[1617576537453,2.99647839,58099.0,58094.0,0.27]
[1617576537653,3.05610224,58099.0,58098.0,0.27]
[1617576537850,3.05610224,58099.0,58093.0,0.01]
[1617576538051,1.0,58095.0,58090.0,0.36207662]
[1617576538250,1.0,58095.0,58091.0,0.01]
[1617576538452,1.2985588,58095.0,58094.0,0.01]
[1617576538652,1.2985588,58095.0,58090.0,0.36207662]
[1617576538851,1.2985588,58095.0,58092.0,0.27]
[1617576539252,0.10725655,58093.0,58091.0,0.27]
[1617576539453,0.11730092,58093.0,58089.0,0.37211108]
[1617576539653,0.11730092,58093.0,58090.0,0.26]
[1617576539855,1.11730092,58093.0,58092.0,0.27]
[1617576540255,1.11730092,58093.0,58090.0,0.27]
[1617576540454,1.11730092,58093.0,58090.0,0.63211346]
[1617576540455,1.10725655,58093.0,58090.0,0.63211346]
[1617576540653,1.10725655,58093.0,58092.0,0.27]
[1617576540854,1.11730028,58093.0,58091.0,0.26]
[1617576541253,1.11730028,58093.0,58088.0,0.85122742]
[1617576541455,1.11730028,58093.0,58089.0,0.27]
[1617576541654,1.40565241,58093.0,58092.0,0.27]
[1617576541854,0.40565241,58093.0,58088.0,0.4891]
[1617576542053,1.40565241,58093.0,58090.0,0.27]
[1617576542254,1.10725655,58093.0,58090.0,0.27]
[1617576542454,1.10725655,58093.0,58089.0,0.27]
[1617576542655,0.01004465,58092.0,58091.0,0.27]
[1617576543056,0.01004465,58092.0,58089.0,0.27]
[1617576543257,0.01004465,58092.0,58091.0,0.27]
[1617576543658,0.01004465,58092.0,58089.0,0.27]
[1617576544056,0.01004465,58092.0,58091.0,0.27]
[1617576544257,0.01004465,58092.0,58088.0,0.4891]
[1617576544457,0.01004465,58092.0,58089.0,0.27]
[1617576545560,0.01005357,58091.0,58089.0,0.27]
[1617576546059,1.01005357,58091.0,58089.0,0.27]
[1617576546860,0.01005156,58090.0,58089.0,0.27]
[1617576547060,0.13065156,58090.0,58089.0,0.27]
[1617576547662,1.13065156,58090.0,58089.0,0.27]
[1617576548261,1.1206,58090.0,58089.0,0.27]
[1617576548462,3.7582,58090.0,58089.0,0.27]
[1617576549164,4.05679636,58090.0,58089.0,0.27]
[1617576551769,3.76824422,58090.0,58089.0,0.27]
[1617576552569,3.7582,58090.0,58089.0,0.27]
[1617576553971,1.1206,58090.0,58089.0,0.27]
[1617576554171,1.1206,58090.0,58089.0,3.2687]
[1617576557878,1.1206,58090.0,58089.0,0.27]
[1617576558080,4.6813,58090.0,58089.0,0.27]
[1617576559181,3.6813,58090.0,58089.0,0.27]
[1617576562185,3.69133087,58090.0,58089.0,0.27]
[1617576563085,3.74363087,58090.0,58089.0,0.27]
[1617576563486,3.69133087,58090.0,58089.0,0.27]
[1617576565687,3.6813,58090.0,58089.0,0.27]
[1617576576202,3.9791975,58090.0,58089.0,0.27]
[1617576580206,3.69132574,58090.0,58089.0,0.27]
[1617576580906,4.69132574,58090.0,58089.0,0.27]
[1617576581806,4.97922675,58090.0,58089.0,0.27]
[1617576587215,5.33894636,58090.0,58089.0,0.27]
[1617576587415,5.77858146,58090.0,58089.0,0.63369813]
[1617576588013,4.77858146,58090.0,58089.0,0.63369813]
[1617576590816,5.77858146,58090.0,58089.0,0.63369813]
[1617576591217,4.77858146,58090.0,58089.0,0.63369813]
[1617576591618,5.77858146,58090.0,58089.0,0.63369813]
[1617576591818,4.77858146,58090.0,58089.0,0.63369813]
[1617576592417,5.77858146,58090.0,58089.0,0.63369813]
[1617576593522,4.77858146,58090.0,58089.0,0.63369813]
[1617576598430,4.77858146,58090.0,58089.0,1.07863042]
[1617576600034,4.77858146,58090.0,58089.0,1.12993042]
[1617576600435,4.77858146,58090.0,58089.0,0.68499813]
[1617576600634,4.77858146,58090.0,58089.0,0.63369813]
[1617576601735,4.77858146,58090.0,58089.0,0.80339813]
[1617576602636,4.77858146,58090.0,58089.0,4.14999813]
[1617576602637,1.09728146,58090.0,58089.0,4.14999813]
[1617576603437,0.65764636,58090.0,58089.0,4.79320364]
[1617576603837,0.900446,58090.0,58089.0,4.79320364]
[1617576604037,0.900446,58090.0,58089.0,4.84480364]
[1617576604239,0.65764636,58090.0,58089.0,5.29873049]
[1617576607139,0.65764636,58090.0,58089.0,5.35073049]
[1617576608141,0.65764636,58090.0,58089.0,6.85073049]
[1617576608342,0.65764636,58090.0,58089.0,6.79873049]
[1617576608641,0.29792675,58090.0,58089.0,6.79873049]
[1617576609342,0.29792675,58090.0,58089.0,6.84963049]
[1617576611041,0.29792675,58090.0,58089.0,6.79873049]
[1617576612042,0.26592675,58090.0,58089.0,6.85053049]
[1617576612241,0.18782675,58090.0,58089.0,6.85053049]
[1617576612845,0.01012682,58091.0,58089.0,6.85053049]
[1617576613244,0.01012682,58091.0,58090.0,1.46381416]
[1617576613646,0.01012682,58091.0,58090.0,1.73381416]
[1617576614445,0.01012682,58091.0,58090.0,1.78471416]
[1617576615045,0.01012817,58092.0,58090.0,3.28471416]
[1617576615944,0.01012817,58092.0,58091.0,4.17047939]
[1617576616145,0.01012817,58092.0,58091.0,5.67047939]
[1617576616345,0.10725655,58099.0,58091.0,5.67047939]
[1617576616346,0.01013009,58093.0,58091.0,5.94047939]
[1617576616745,0.01013009,58093.0,58092.0,0.2]
[1617576616948,0.24276796,58098.0,58092.0,1.7]
[1617576616949,0.01013173,58094.0,58092.0,1.7]
[1617576617147,0.01013173,58094.0,58092.0,2.97]
[1617576617348,0.01013491,58096.0,58092.0,3.43374214]
[1617576617547,0.01013491,58096.0,58095.0,0.10725655]
[1617576617748,0.01013491,58096.0,58095.0,3.11925194]
[1617576617949,0.01013491,58096.0,58095.0,3.38925194]
[1617576618149,0.01013872,58098.0,58095.0,4.54097382]
[1617576618347,0.01013872,58098.0,58096.0,0.0514]
[1617576618749,0.01013872,58098.0,58097.0,0.47]
[1617576618948,0.01013872,58098.0,58097.0,1.84264382]
[1617576619149,0.01013872,58098.0,58097.0,3.34264382]
[1617576619449,0.01013872,58098.0,58097.0,3.28195548]
[1617576619851,0.01013872,58098.0,58097.0,3.43367576]
[1617576620252,0.01013872,58098.0,58097.0,4.43367576]
[1617576620452,0.01013872,58098.0,58097.0,4.48457576]
[1617576620651,0.36148054,58102.0,58097.0,3.48457576]
[1617576621050,0.01013647,58098.0,58097.0,3.48457576]
[1617576622754,0.01013647,58098.0,58097.0,2.9799775]
[1617576623957,0.01011872,58101.0,58097.0,6.1310775]
[1617576624156,0.01011872,58101.0,58097.0,6.0801775]
[1617576624357,0.01011872,58101.0,58100.0,0.36266733]
[1617576624758,0.01011872,58101.0,58100.0,0.63266733]
[1617576625259,0.36070424,58104.0,58100.0,0.63266733]
[1617576625658,0.24107655,58101.0,58100.0,0.69335518]
[1617576625859,0.24107655,58101.0,58100.0,0.74445518]
[1617576626058,0.24107655,58101.0,58100.0,0.69335518]
[1617576627064,0.24107655,58101.0,58100.0,0.74425518]
[1617576628565,0.24107655,58101.0,58100.0,0.69335518]
[1617576631173,0.48383358,58101.0,58100.0,0.69335518]
[1617576631569,0.24107655,58101.0,58100.0,0.69335518]
[1617576632970,0.48383264,58101.0,58100.0,0.69335518]
[1617576633474,0.24107655,58101.0,58100.0,0.69335518]
[1617576634273,0.24107655,58101.0,58100.0,0.74445518]
[1617576636275,0.24107655,58101.0,58100.0,0.69335518]
[1617576639278,0.60280578,58101.0,58100.0,0.69335518]
[1617576639679,0.84556427,58101.0,58100.0,0.27]
[1617576640078,0.60280578,58101.0,58099.0,0.01]
[1617576640478,0.24107655,58101.0,58100.0,0.26]
[1617576640679,0.24107655,58101.0,58099.0,0.27]
[1617576640882,0.60284201,58101.0,58099.0,0.6325991]
[1617576641278,0.36174152,58100.0,58098.0,0.632599]
[1617576641678,0.60449948,58100.0,58098.0,0.362599]
[1617576641879,0.60449948,58100.0,58099.0,0.27]
[1617576642581,1.90607275,58100.0,58099.0,0.33068972]
[1617576642780,5.27767275,58100.0,58099.0,0.33068972]
[1617576642981,4.27767275,58100.0,58099.0,0.33068972]
[1617576643584,4.32927275,58100.0,58099.0,0.33068972]
[1617576644381,0.95767275,58100.0,58099.0,0.33068972]
[1617576644581,0.90607275,58100.0,58099.0,0.33068972]
[1617576644981,0.90607275,58100.0,58099.0,2.83348972]
[1617576646082,0.90607275,58100.0,58099.0,3.19624488]
[1617576652692,1.90607275,58100.0,58099.0,2.83348972]
[1617576654097,1.90607275,58100.0,58099.0,2.7728]
[1617576655494,1.74362756,58100.0,58099.0,2.7728]
[1617576655694,1.74362756,58100.0,58099.0,0.27]
[1617576655893,5.70333679,58100.0,58099.0,0.27]
[1617576656094,5.70333679,58100.0,58097.0,0.27]
[1617576656494,5.70333679,58100.0,58099.0,0.27]
[1617576656694,5.70333679,58100.0,58096.0,0.36277915]
[1617576656896,0.66332531,58098.0,58097.0,0.27]
[1617576657296,5.94629184,58100.0,58097.0,0.27]
[1617576657696,1.66331667,58098.0,58097.0,0.27]
[1617576658095,1.90609856,58098.0,58097.0,0.27]
[1617576658896,2.34824535,58098.0,58097.0,0.27]
[1617576659798,2.34824535,58098.0,58096.0,0.01]
[1617576660198,2.34824535,58098.0,58097.0,0.26]
[1617576660398,1.0,58098.0,58097.0,3.6514]
[1617576660798,2.1060204,58098.0,58097.0,3.9214]
[1617576661199,1.1060204,58098.0,58097.0,3.9214]
[1617576661404,2.1060204,58098.0,58097.0,3.9214]
[1617576661608,1.1060204,58098.0,58097.0,4.28490987]
[1617576666506,1.1060204,58098.0,58097.0,4.33640987]
[1617576667305,1.1060204,58098.0,58097.0,4.28490987]
[1617576675415,0.10725655,58101.0,58097.0,4.28490987]
[1617576675617,1.11033345,58098.0,58097.0,4.28490987]
[1617576676117,1.11033345,58098.0,58097.0,3.9214]
[1617576676518,1.11033345,58098.0,58097.0,4.28488194]
[1617576683932,1.11033345,58098.0,58097.0,4.72947231]
[1617576685538,1.11033345,58098.0,58097.0,4.28488194]
[1617576685936,1.11033345,58098.0,58097.0,4.72946715]
[1617576686438,1.11033345,58098.0,58097.0,1.07806715]
[1617576686639,3.72613345,58098.0,58097.0,1.07806715]
[1617576686839,4.72613345,58098.0,58097.0,0.63348194]
[1617576687440,5.33306557,58098.0,58097.0,0.63348194]
[1617576688254,5.83643173,58098.0,58097.0,0.63348194]
[1617576688641,5.83643173,58098.0,58097.0,0.27]
[1617576689046,5.83643173,58098.0,58096.0,0.36377767]
[1617576689441,5.83643173,58098.0,58097.0,0.27]
[1617576689641,2.6158,58098.0,58097.0,0.27]
[1617576690041,4.22661088,58098.0,58097.0,0.63377874]
[1617576690241,3.72325764,58098.0,58097.0,0.63377874]
[1617576690442,3.72325764,58098.0,58097.0,0.36377874]
[1617576690842,3.72325764,58098.0,58097.0,0.62377874]
[1617576691043,3.72325764,58098.0,58097.0,0.62377131]
[1617576692844,1.10745764,58098.0,58097.0,0.62377131]
[1617576693845,1.61054865,58098.0,58097.0,0.62377131]
[1617576694046,1.61054865,58098.0,58097.0,3.97877131]
[1617576694846,1.75303865,58098.0,58097.0,3.97877131]
[1617576696646,1.24994764,58098.0,58097.0,3.97877131]
[1617576696846,1.10745764,58098.0,58097.0,3.97877131]
[1617576698048,1.22456764,58098.0,58097.0,3.97877131]
[1617576698250,0.11711,58098.0,58097.0,3.615]
[1617576698849,1.22528742,58098.0,58097.0,3.97879634]
[1617576702156,1.72891686,58098.0,58097.0,3.97879634]
[1617576704658,0.86586234,58098.0,58097.0,3.97879634]
[1617576705059,1.61078539,58098.0,58097.0,3.97879634]
[1617576706359,1.73004539,58098.0,58097.0,3.97879634]
[1617576706761,2.73004539,58098.0,58097.0,3.97879634]
[1617576708565,1.61078539,58098.0,58097.0,3.97879634]
[1617576713468,1.10739344,58098.0,58097.0,3.97879634]
[1617576713668,1.10225,58099.0,58097.0,3.615]
[1617576713869,1.10225,58099.0,58097.0,0.26]
[1617576714068,1.55049124,58098.0,58097.0,0.26]
[1617576714268,1.55049124,58098.0,58097.0,3.6967]
[1617576714669,1.55049124,58098.0,58097.0,3.9567]
[1617576714869,1.55049124,58098.0,58097.0,3.6967]
[1617576715270,1.55049124,58098.0,58097.0,3.9667]
[1617576715471,1.55049124,58098.0,58097.0,0.27]
[1617576715671,4.17679124,58098.0,58097.0,0.27]
[1617576715871,4.17679124,58098.0,58096.0,2.5489]
[1617576716071,4.17679124,58098.0,58097.0,0.27]
[1617576716072,5.17679124,58098.0,58097.0,0.27]
[1617576716272,5.54095148,58098.0,58097.0,0.27]
[1617576728894,2.91465148,58098.0,58097.0,0.27]
[1617576729096,2.91465148,58098.0,58097.0,3.2899]
[1617576729297,1.91465148,58098.0,58097.0,3.0199]
[1617576729695,1.04702115,58098.0,58097.0,3.2899]
[1617576730096,1.04702115,58098.0,58097.0,3.4899]
[1617576730497,1.04702115,58098.0,58097.0,3.64805655]
[1617576730697,1.04702115,58098.0,58097.0,4.04169347]
[1617576730898,1.04702115,58098.0,58097.0,3.84169347]
[1617576736604,1.04702115,58098.0,58097.0,3.96883347]
[1617576737507,4.65702115,58098.0,58097.0,3.96883347]
[1617576737907,4.21395539,58098.0,58097.0,3.96883347]
[1617576738307,4.45670352,58098.0,58097.0,3.96883347]
[1617576738707,4.9006444,58098.0,58097.0,3.96883347]
[1617576738907,4.9006444,58098.0,58097.0,3.84169347]
[1617576739511,4.9006444,58098.0,58097.0,4.20541157]
[1617576743718,4.9006444,58098.0,58097.0,3.76087465]
[1617576746720,5.9006444,58098.0,58097.0,3.76087465]
[1617576747920,5.9006444,58098.0,58097.0,0.74097465]
[1617576748320,5.9006444,58098.0,58097.0,0.6337181]
[1617576748921,6.40217429,58098.0,58097.0,0.27]
[1617576749322,6.40217429,58098.0,58096.0,0.01]
[1617576749923,6.40217429,58098.0,58094.0,0.36365281]
[1617576749924,2.21142035,58097.0,58095.0,0.26]
[1617576750323,1.60432867,58096.0,58095.0,0.26]
[1617576750722,2.21127467,58096.0,58095.0,0.26]
[1617576751123,2.21127467,58096.0,58094.0,0.02]
[1617576751324,1.60432867,58096.0,58094.0,0.02]
[1617576751525,1.10275284,58095.0,58094.0,0.02]
[1617576752122,1.34553252,58095.0,58094.0,0.02]
[1617576752923,1.45278907,58095.0,58094.0,0.0806948]
[1617576753324,1.45278907,58095.0,58094.0,0.02]
[1617576753525,2.45278907,58095.0,58094.0,0.02]
[1617576753725,2.45278907,58095.0,58094.0,0.0606948]
[1617576754124,2.45278907,58095.0,58094.0,0.0906948]
[1617576756132,6.15048907,58095.0,58094.0,0.0906948]
[1617576756425,6.65143414,58095.0,58094.0,0.03]
[1617576756733,6.65143414,58095.0,58091.0,0.36353201]
[1617576756930,6.65143414,58095.0,58088.0,0.4891]
[1617576756931,7.01561645,58095.0,58092.0,0.25]
[1617576757328,1.10212152,58093.0,58091.0,0.02]
[1617576757730,1.10212152,58093.0,58090.0,0.36353552]
[1617576757731,1.60243728,58092.0,58088.0,0.85265731]
[1617576758127,1.10175687,58089.0,58088.0,0.85265731]
[1617576758326,1.20661687,58089.0,58088.0,0.85265731]
[1617576758528,1.20661687,58089.0,58088.0,1.12265731]
[1617576758927,1.31387342,58089.0,58088.0,1.12265731]
[1617576759126,1.55668774,58089.0,58088.0,1.12265731]
[1617576759326,2.55668774,58089.0,58088.0,1.12265731]
[1617576759927,2.55668774,58089.0,58088.0,0.7591]
[1617576766733,2.60888774,58089.0,58088.0,0.7591]
[1617576768933,2.55668774,58089.0,58088.0,0.7591]
[1617576769134,3.05649918,58089.0,58088.0,0.7591]
[1617576770436,2.55668774,58089.0,58088.0,0.7591]
[1617576770835,1.55668774,58089.0,58088.0,0.7591]
[1617576771035,2.55668774,58089.0,58088.0,0.7591]
[1617576771637,6.25868774,58089.0,58088.0,0.7591]
[1617576772239,6.62294245,58089.0,58088.0,0.7591]
[1617576773943,4.91411655,58089.0,58088.0,0.7591]
[1617576774343,6.01283336,58089.0,58088.0,0.7591]
[1617576774544,5.01283336,58089.0,58088.0,0.7591]
[1617576774743,6.01283336,58089.0,58088.0,0.7591]
[1617576789360,4.91411655,58089.0,58088.0,0.7591]
[1617576789861,6.01269982,58089.0,58088.0,0.7591]
[1617576799879,6.5124716,58089.0,58088.0,0.7591]
[1617576811497,7.07910954,58089.0,58088.0,0.7591]
[1617576819510,6.97185299,58089.0,58088.0,0.7591]
[1617576820011,7.07910954,58089.0,58088.0,0.7591]
[1617576824018,7.07910954,58089.0,58088.0,0.86635655]
[1617576831228,7.07910954,58089.0,58088.0,0.7591]
[1617576832428,7.07910954,58089.0,58088.0,0.27]
[1617576832929,7.07910954,58089.0,58085.0,0.27]
[1617576833129,7.07910954,58089.0,58088.0,0.27]
[1617576833329,4.91411655,58089.0,58088.0,0.27]
[1617576833529,4.91411655,58089.0,58084.0,0.26]
[1617576833731,6.52174021,58089.0,58084.0,0.26]
[1617576834130,2.60772807,58085.0,58084.0,0.62412611]
[1617576834529,2.60772807,58085.0,58084.0,0.36412611]
[1617576834730,2.85058208,58085.0,58084.0,0.36412611]
[1617576834930,2.85058208,58085.0,58084.0,0.63412611]
[1617576835431,2.85058208,58085.0,58084.0,0.69483964]
[1617576837934,2.85058208,58085.0,58084.0,0.33071353]
[1617576841541,2.85058208,58085.0,58084.0,0.27]
[1617576842040,2.85058208,58085.0,58083.0,0.01]
[1617576842240,2.579,58084.0,58083.0,0.37407153]
[1617576842440,2.579,58084.0,58083.0,0.36407153]
[1617576842641,4.4281841,58084.0,58083.0,0.36407153]
[1617576842841,4.4281841,58084.0,58083.0,0.63407153]
[1617576843043,4.79247366,58084.0,58083.0,0.63407153]
[1617576843342,4.79247366,58084.0,58083.0,0.69478626]
[1617576843942,5.79247366,58084.0,58083.0,0.69478626]
[1617576848449,3.579,58084.0,58083.0,0.69478626]
[1617576849049,3.94329221,58084.0,58083.0,0.69478626]
[1617576850248,3.94329221,58084.0,58083.0,0.33071473]
[1617576857256,3.94329221,58084.0,58083.0,0.27]
[1617576859156,3.94329221,58084.0,58082.0,0.01]
[1617576859557,1.96957279,58083.0,58082.0,0.01]
[1617576859860,2.96957279,58083.0,58082.0,0.01]
[1617576860057,2.96957279,58083.0,58082.0,0.37397596]
[1617576860457,3.07682934,58083.0,58082.0,0.36397596]
[1617576860860,3.07682934,58083.0,58082.0,0.63397596]
[1617576861558,3.07682934,58083.0,58082.0,0.27]
[1617576861960,3.07682934,58083.0,58081.0,0.36398018]
[1617576862362,1.47155198,58083.0,58082.0,0.63397811]
[1617576862560,0.47155198,58083.0,58082.0,0.63397811]
[1617576862762,2.07962115,58083.0,58082.0,0.36397811]
[1617576863161,2.07962115,58083.0,58082.0,0.63397811]
[1617576863562,2.07962115,58083.0,58082.0,0.27]
[1617576863962,2.07962115,58083.0,58081.0,0.3639623]
[1617576864163,3.07962115,58083.0,58082.0,0.36396182]
[1617576864363,3.07962115,58083.0,58082.0,0.63396182]
[1617576864967,3.07962115,58083.0,58082.0,0.27]
[1617576865365,3.07962115,58083.0,58081.0,0.36392619]
[1617576865764,3.07962115,58083.0,58082.0,0.27]
[1617576867968,6.74922115,58083.0,58082.0,0.27]
[1617576868169,6.38492572,58083.0,58082.0,0.27]
[1617576868568,6.74924001,58083.0,58082.0,0.27]
[1617576871271,3.07964001,58083.0,58082.0,0.27]
[1617576871471,3.07964001,58083.0,58082.0,3.6555]
[1617576872273,2.71532572,58083.0,58082.0,3.6555]
[1617576872873,2.71532572,58083.0,58082.0,0.27]
[1617576873073,6.37942572,58083.0,58082.0,0.27]
[1617576873775,6.74373974,58083.0,58082.0,0.27]
[1617576877277,5.13567057,58083.0,58082.0,0.27]
[1617576877578,6.74243603,58083.0,58082.0,0.27]
[1617576886688,6.74243603,58083.0,58082.0,0.63418105]
[1617576887088,6.74243603,58083.0,58082.0,0.36418105]
[1617576887489,6.74243603,58083.0,58082.0,0.63418105]
[1617576887888,6.74243603,58083.0,58082.0,0.69490118]
[1617576896605,6.74243603,58083.0,58082.0,0.33072013]
[1617576897004,6.74243603,58083.0,58082.0,0.69489116]